Workbook

Sheet титульный лист
DI1: Приложение № 1
DI2: к приказу Министерства образования и науки Мурманской области от 18.06.2020 № 829
CZ4: Утверждаю
CZ5: Директор ГАПОУ МО "ПЭК"
CZ6: (наименование должности лица, утверждающего документ)
DO8: Шевченко Д.В.
CZ9: (подпись) | DO9: (расшифровка подписи)
CZ10: " | DB10: 27 | DE10: " | DH10: декабря | DW10: 20 | DZ10: 22 | EC10: г.
T13: План финансово-хозяйственной деятельности на 2022 г.
T14: (на 2022 и плановый период 2023 и 2024годов) | DV14: Коды
AU16: "27" декабря 2022 г. | DT16: Дата | DV16: 27.12.2022
A17: Наименование учреждения | AB17: Государственное автономное профессиональное образовательное учреждение Мурманской области "Полярнозоринский энергетический колледж" | DT17: по Сводному реестру | DV17: 472Ц8191
DT18: глава по БК | DV18: 804
A19: Орган, осуществляющий функции и полномочия учредителя | AG19: Министерство образования и науки Мурманской области | DT19: по Сводному реестру | DV19: 47200021
DT20: ИНН | DV20: 5102006924
DT21: КПП | DV21: 510201001
A22: Единицы измерения: рубли | DT22: по ОКЕИ | DV22: 383
A23: Юридический адрес учреждения | AO23: 184230, Мурманская обл., г. Полярные Зори, ул. Курчатова, д. 24
A24: Адрес фактического местонахождения учреждения | AO24: 184230, Мурманская обл., г. Полярные Зори, ул. Курчатова, д. 24
A25: ¹ Указывается дата утверждения Плана уполномоченным лицом учреждения

Sheet раздел.1_
A2: Раздел 1. Поступления и выплаты
A4: Наименование показателя | BA4: Код строки | BI4: Код по бюджетной классификации Российской Федерации ² | BV4: Аналитический код | CI4: Сумма, руб. (с точностью до двух знаков после запятой)
CI5: на 20 | CO5: 21 | CR5: г. | CV5: на 20 | DB5: 22 | DE5: г. | DI5: на 20 | DO5: 23 | DR5: г. | DV5: на 20 | EB5: 24 | EE5: г. | EI5: за пределами планового периода
CI6: отчетный финансовый год | CV6: текущий финансовый год | DI6: первый год планового периода | DV6: второй год планового периода
A7: 1 | BA7: 2 | BI7: 3 | BV7: 4 | CV7: 5 | DI7: 6 | DV7: 7 | EI7: 8
A8: Остаток средств на начало текущего финансового года³ | BA8: 0001 | BI8: х | BV8: х | CI8: =SUM(CI10:CU13) -> 846,364.68 | CV8: =SUM(CV10:DH13) -> 124,330.00 | DI8: =SUM(DI10:DU13) -> 0.00 | DV8: =SUM(DV10:EH13) -> 0.00
A9: из них : | BA9: х | BI9: х | BV9: х
A10: средства федерального бюджета | BA10: х | BV10: х | CI10: 0.00 | CV10: 0.00 | DI10: 0.00 | DV10: 0.00
A11: средства областного бюджета | BA11: х | BV11: х | CI11: 761,621.54 | CV11: 0.00 | DI11: 0.00 | DV11: 0.00
A12: внебюджетные источники | BA12: х | BV12: х | CI12: =4.34 -> 4.34 | CV12: =3000 -> 3,000.00 | DI12: 0.00 | DV12: 0.00
A13: средства во временном распоряжении | BA13: х | BV13: х | CI13: =84738.8 -> 84,738.80 | CV13: =121330 -> 121,330.00 | DI13: 0.00 | DV13: 0.00
A14: Остаток средств на конец текущего финансового года ³ | BA14: 0002 | BI14: х | BV14: х | CI14: =CI16+CI17+CI18+CI19 -> 124,330.00 | CV14: =CV16+CV17+CV18 -> -0.00 | DI14: =DI16+DI17+DI18 -> 0.00 | DV14: =DV16+DV17+DV18 -> 0.00
A15: из них : | BA15: х | BI15: х | BV15: х
A16: средства федерального бюджета | BA16: х | BV16: х | CI16: =CI10+CI22-CI79 -> 0.00 | CV16: =CV10+CV22-CV79 -> 0.00 | DI16: =DI10+DI22-DI79 -> 0.00 | DV16: =DV10+DV22-DV79 -> 0.00
A17: средства областного бюджета | BA17: х | BV17: х | CI17: =CI11+CI23-CI80 -> 0.00 | CV17: =CV11+CV23-CV80 -> 0.00 | DI17: =DI11+DI23-DI80 -> 0.00 | DV17: =DV11+DV23-DV80 -> 0.00
A18: внебюджетные источники | BA18: х | BV18: х | CI18: 3,000.00 | CV18: =CV12+CV24-CV81+CV162-CV166 -> -0.00 | DI18: 0.00 | DV18: 0.00
A19: средства во временном распоряжении | BA19: х | BV19: х | CI19: 121,330.00 | CV19: =CV13+CV75-CV167 -> 178,049.00 | DI19: 0.00 | DV19: 0.00
A20: Доходы, всего: | BA20: 1000 | BV20: х | CI20: =SUM(CI22:CU24) -> 81,142,689.59 | CV20: =SUM(CV22:DH24) -> 98,544,685.22 | DI20: =SUM(DI22:DU24) -> 74,844,300.00 | DV20: =SUM(DV22:EH24) -> 74,844,300.00
A21: из них : | BA21: х | BI21: х | BV21: х
A22: средства федерального бюджета | BA22: х | BV22: х | CI22: =CI48 -> 1,014,200.40 | CV22: =CV48 -> 3,145,000.00 | DI22: =DI48 -> 0.00 | DV22: =DV48 -> 0.00
A23: средства областного бюджета | BA23: х | BV23: х | CI23: =SUM(CI35+CI49) -> 75,462,488.48 | CV23: =SUM(CV35+CV49) -> 91,000,107.12 | DI23: =SUM(DI35+DI49) -> 70,359,900.00 | DV23: =SUM(DV35+DV49) -> 70,359,900.00
A24: внебюджетные источники | BA24: х | BV24: х | CI24: =SUM(CI25+CI36+CI39+CI50+CI62+CI70) -> 4,666,000.71 | CV24: =SUM(CV25+CV36+CV39+CV50+CV62+CV76) -> 4,399,578.10 | DI24: =SUM(DI25+DI36+DI39+DI50+DI62+DI70) -> 4,484,400.00 | DV24: =SUM(DV25+DV36+DV39+DV50+DV62+DV70) -> 4,484,400.00
A25: в том числе: доходы от собственности, всего | BA25: 1100 | BI25: 120 | BV25: х | CI25: =SUM(CI27:CU29) -> 1,283,120.06 | CV25: =SUM(CV27:DH29) -> 912,749.27 | DI25: =SUM(DI27:DU29) -> 1,000,000.00 | DV25: =SUM(DV27:EH29) -> 1,000,000.00
A26: из них : | BA26: х | BI26: х | BV26: х
A27: средства федерального бюджета | BA27: х | BV27: х
A28: средства областного бюджета | BA28: х | BV28: х
A29: внебюджетные источники | BA29: х | BI29: 120 | BV29: х | CI29: =767262.86+515857.2 -> 1,283,120.06 | CV29: =справочно!D14 -> 912,749.27 | DI29: 1,000,000.00 | DV29: 1,000,000.00
A30: в том числе: | BV30: х
BV31: х
A32: доходы от оказания услуг, работ, компенсации затрат учреждений, всего | BA32: 1200 | BI32: 130 | BV32: х | CI32: =SUM(CI34:CU36) -> 66,936,313.15 | CV32: =SUM(CV34:DH36) -> 73,701,677.96 | DI32: =SUM(DI34:DU36) -> 73,709,900.00 | DV32: =SUM(DV34:EH36) -> 73,709,900.00
A33: из них : | BA33: х | BI33: х | BV33: х
A34: средства федерального бюджета | BA34: х | BV34: х
A35: средства областного бюджета | BA35: х | BI35: 130 | BV35: х | CI35: =63939850 -> 63,939,850.00 | CV35: =справочно!D16 -> 70,359,900.00 | DI35: 70,359,900.00 | DV35: 70,359,900.00
A36: внебюджетные источники | BA36: х | BI36: 130 | BV36: х | CI36: 2,996,463.15 | CV36: =справочно!H15 -> 3,341,777.96 | DI36: 3,350,000.00 | DV36: 3,350,000.00
A37: в том числе: субсидии на финансовое обеспечение выполнения государственного (муниципального) задания за счет средств бюджета публично-правового образования, создавшего учреждение | BA37: 1210 | BI37: 130 | BV37: х | CI37: 63,939,850.00 | CV37: =справочно!E16 -> 70,359,900.00 | DI37: 70,359,900.00 | DV37: 70,359,900.00
A38: субсидии на финансовое обеспечение выполнения государственного задания за счет средств бюджета Федерального фонда обязательного медицинского страхования | BA38: 1220 | BI38: 130 | BV38: х
A39: доходы от штрафов, пеней, иных сумм принудительного изъятия, всего | BA39: 1300 | BI39: 140 | BV39: х | CI39: =CI43 -> 159,808.95 | CV39: =CV43 -> 2,868.43 | DI39: =DI43 -> 0.00 | DV39: =DV43 -> 0.00
A40: из них : | BA40: х | BI40: х | BV40: х
A41: средства федерального бюджета | BA41: х | BV41: х
A42: средства областного бюджета | BA42: х | BV42: х
A43: внебюджетные источники | BA43: х | BI43: 140 | BV43: х | CI43: 159,808.95 | CV43: 2,868.43 | DI43: 0.00 | DV43: 0.00
A44: в том числе: | BA44: 1310 | BI44: 140
A46: безвозмездные денежные поступления, всего | BA46: 1400 | BI46: 150 | BV46: х | CI46: =SUM(CI48:CU50) -> 12,626,438.88 | CV46: =SUM(CV48:DH50) -> 23,919,607.12 | DI46: =SUM(DI48:DU50) -> 134,400.00 | DV46: =SUM(DV48:EH50) -> 134,400.00
A47: из них : | BA47: х | BI47: х | BV47: х
A48: средства федерального бюджета | BA48: х | BV48: х | CI48: =1014200.4 -> 1,014,200.40 | CV48: =справочно!D39 -> 3,145,000.00 | DI48: 0.00 | DV48: 0.00
A49: средства областного бюджета | BA49: х | BV49: х | CI49: =12536838.88-1014200.4 -> 11,522,638.48 | CV49: =справочно!D34+справочно!D35+справочно!D36+справочно!D37+справочно!D38+справочно!D40+справочно!D41+справочно!D42 -> 20,640,207.12 | DI49: 0.00 | DV49: 0.00
A50: внебюджетные источники | BA50: х | BI50: 150 | BV50: х | CI50: 89,600.00 | CV50: =справочно!H43 -> 134,400.00 | DI50: 134,400.00 | DV50: 134,400.00
A51: в том числе: | BA51: 1410 | BI51: 150 | CI51: 12,536,838.88 | CV51: =CV48+CV49+CV50 -> 23,919,607.12 | DI51: 0.00 | DV51: 0.00
A52: целевые субсидии
A53: субсидии на осуществление капитальных вложений | BA53: 1420 | BI53: 150
A54: прочие доходы, всего | BA54: 1500 | BI54: 180 | BV54: х
A55: из них : | BA55: х | BI55: х | BV55: х
A56: средства федерального бюджета | BA56: х | BV56: х
A57: средства областного бюджета | BA57: х | BV57: х
A58: внебюджетные источники | BA58: х | BV58: х
A59: в том числе:
A62: доходы от операций с активами, всего | BA62: 1900 | CI62: =CI66 -> 2,644.00 | CV62: =CV66 -> 799.10 | DI62: =DI66 -> 0.00 | DV62: =DV66 -> 0.00
A63: из них : | BA63: х | BI63: х | BV63: х
A64: средства федерального бюджета | BA64: х | BV64: х
A65: средства областного бюджета | BA65: х | BV65: х
A66: внебюджетные источники | BA66: х | BI66: 410 | BV66: х | CI66: 2,644.00 | CV66: =справочно!H48 -> 799.10 | DI66: 0.00 | DV66: 0.00
A67: в том числе:
A70: прочие поступления, всего 4 | BA70: 1980 | BI70: х | CI70: =SUM(CI74) -> 134,364.55 | CV70: =SUM(CV74) -> 222,164.34 | DI70: =SUM(DI74) -> 0.00 | DV70: =SUM(DV74) -> 0.00 | EI70: =SUM(EI74) -> 0
A71: из них : | BA71: х | BI71: х | BV71: х
A72: средства федерального бюджета | BA72: х | BV72: х
A73: средства областного бюджета | BA73: х | BV73: х
A74: внебюджетные источники | BA74: х | BV74: х | CI74: =SUM(CI75) -> 134,364.55 | CV74: =SUM(CV75:DH76) -> 222,164.34 | DI74: =SUM(DI75) -> 0.00 | DV74: =SUM(DV75) -> 0.00 | EI74: =SUM(EI75) -> 0
A75: из них: увеличение остатков денежных средств | BA75: 1981 | BI75: 510 | BV75: х | CI75: =121330+13034.55 -> 134,364.55 | CV75: =справочно!H53 -> 215,181.00 | DI75: 0.00 | DV75: 0.00 | EI75: х
A76: обеспечение контрактов | BI76: 510 | CV76: 6,983.34 | DI76: 0.00 | DV76: 0.00
A77: Расходы, всего | BA77: 2000 | BI77: х | BV77: х | CI77: =SUM(CI82+CI98+CI110+CI137+CI167) -> 81,781,877.27 | CV77: =SUM(CV82+CV98+CV110+CV137) -> 98,440,361.49 | DI77: =SUM(DI82+DI98+DI110+DI137+DI167) -> 74,940,300.00 | DV77: =SUM(DV82+DV98+DV110+DV137+DV167) -> 74,940,300.00
A78: из них : | BA78: х | BI78: х | BV78: х
A79: средства федерального бюджета | BA79: х | BV79: х | CI79: =CI84+CI100+CI112+CI139 -> 1,014,200.40 | CV79: =CV84+CV100+CV112+CV139 -> 3,145,000.00 | DI79: 0.00 | DV79: 0.00
A80: средства областного бюджета | BA80: х | BV80: х | CI80: =SUM(CI85+CI101+CI113+CI140) -> 76,224,110.02 | CV80: =SUM(CV85+CV101+CV113+CV140) -> 91,000,107.12 | DI80: =SUM(DI85+DI101+DI113+DI140) -> 70,359,900.00 | DV80: =SUM(DV85+DV101+DV113+DV140) -> 70,359,900.00
A81: внебюджетные источники | BA81: х | BV81: х | CI81: =SUM(CI86+CI102+CI114+CI141+CI165) -> 4,543,566.85 | CV81: =SUM(CV86+CV102+CV114+CV141) -> 4,295,254.37 | DI81: =SUM(DI86+DI102+DI114+DI141+DI165) -> 4,580,400.00 | DV81: =SUM(DV86+DV102+DV114+DV141+DV165) -> 4,580,400.00
A82: в том числе: на выплаты персоналу, всего | BA82: 2100 | BI82: х | BV82: х | CI82: =SUM(CI84:CU86) -> 50,564,753.21 | CV82: =SUM(CV84:DH86) -> 58,233,324.94 | DI82: =SUM(DI84:DU86) -> 53,071,400.00 | DV82: =SUM(DV84:EH86) -> 53,071,400.00 | EI82: х
A83: из них : | BA83: х | BI83: х | BV83: х
A84: средства федерального бюджета | BA84: х | BV84: х | CI84: =783973.41+230226.99 -> 1,014,200.40 | CV84: =2434570.79+710429.21 -> 3,145,000.00 | DI84: 0.00 | DV84: 0.00
A85: средства областного бюджета | BA85: х | BV85: х | CI85: =36163839.45+56054.7+61492+9770558.5+1079353.96+53551.27+35005.08+10674.52 -> 47,230,529.48 | CV85: =39383704.36+81129.5+12469097.57+693533.65+12638.2+110652.8+32347.2+43091.68 -> 52,826,194.96 | DI85: =39000000+80000+11778000 -> 50,858,000.00 | DV85: 50,858,000.00
A86: внебюджетные источники | BA86: х | BV86: х | CI86: =1834002.72+486020.61 -> 2,320,023.33 | CV86: =1673518.47+65807+522804.51 -> 2,262,129.98 | DI86: =1700000+513400 -> 2,213,400.00 | DV86: 2,213,400.00
A87: в том числе: оплата труда | BA87: 2110 | BI87: 111 | BV87: х | CI87: 38,816,820.66 | CV87: =справочно!D56 -> 43,602,446.42 | DI87: =39000000+1700000 -> 40,700,000.00 | DV87: 40,700,000.00 | EI87: х
A88: прочие выплаты персоналу, в том числе компенсационного характера | BA88: 2120 | BI88: 112 | BV88: х | CI88: 1,135,408.66 | CV88: =справочно!D57 -> 853,108.35 | DI88: 80,000.00 | DV88: 80,000.00 | EI88: х
A89: иные выплаты, за исключением фонда оплаты труда учреждения, для выполнения отдельных полномочий | BA89: 2130 | BI89: 113 | BV89: х | CI89: 61,492.00 | CV89: =справочно!D58 -> 0.00 | DI89: 0.00 | DV89: 0.00 | EI89: х
A90: взносы по обязательному социальному страхованию на выплаты по оплате труда работников и иные выплаты работникам учреждений, всего | BA90: 2140 | BI90: 119 | BV90: х | CI90: =CI91 -> 10,551,031.89 | CV90: =SUM(CV91:DH97) -> 13,777,770.17 | DI90: =DI91 -> 12,291,400.00 | DV90: =DV91 -> 12,291,400.00 | EI90: х
A91: в том числе: на выплаты по оплате труда | BA91: 2141 | BI91: 119 | BV91: х | CI91: 10,551,031.89 | CV91: =справочно!D60 -> 13,777,770.17 | DI91: =11778000+513400 -> 12,291,400.00 | DV91: 12,291,400.00 | EI91: х
A92: на иные выплаты работникам | BA92: 2142 | BI92: 119 | BV92: х | EI92: х
A93: денежное довольствие военнослужащих и сотрудников, имеющих специальные звания | BA93: 2150 | BI93: 131 | BV93: х | EI93: х
A94: расходы на выплаты военнослужащим и сотрудникам, имеющим специальные звания, зависящие от размера денежного довольствия | BA94: 2160 | BI94: 133 | BV94: х | EI94: х
A95: иные выплаты военнослужащим и сотрудникам, имеющим специальные звания | BA95: 2170 | BI95: 134 | BV95: х | EI95: х
A96: страховые взносы на обязательное социальное страхование в части выплат персоналу, подлежащих обложению страховыми взносами | BA96: 2180 | BI96: 139 | BV96: х | EI96: х
A97: в том числе: на оплату труда стажеров | BA97: 2181 | BI97: 139 | BV97: х | EI97: х
A98: социальные и иные выплаты населению, всего | BA98: 2200 | BI98: 300 | BV98: х | CI98: =SUM(CI100+CI101+CI102) -> 9,184,621.73 | CV98: =SUM(CV100+CV101+CV102) -> 9,443,989.88 | DI98: =SUM(DI100+DI101+DI102) -> 15,000.00 | DV98: =SUM(DV100+DV101+DV102) -> 15,000.00 | EI98: х
A99: из них : | BA99: х | BI99: х | BV99: х
A100: средства федерального бюджета | BA100: х | BV100: х | CI100: 0.00 | CV100: 0.00 | DI100: 0.00 | DV100: 0.00
A101: средства областного бюджета | BA101: х | BV101: х | CI101: =109462.08+1877546.86+3230461.91+3859550.88 -> 9,077,021.73 | CV101: =172011.82+4040000+250099+1469645+2030511.67+1327778.39 -> 9,290,045.88 | DI101: 0.00 | DV101: 0.00
A102: внебюджетные источники | BA102: х | BV102: х | CI102: =92600+15000 -> 107,600.00 | CV102: =1544+134400+18000 -> 153,944.00 | DI102: =15000 -> 15,000.00 | DV102: =15000 -> 15,000.00
A103: в том числе: социальные выплаты гражданам, кроме публичных нормативных социальных выплат | BA103: 2210 | BI103: 320 | BV103: х | CI103: 5,217,470.85 | CV103: =CV104+CV105 -> 5,251,589.88 | DI103: =DI104+DI105 -> 0.00 | DV103: =DV104+DV105 -> 0.00 | EI103: х
A104: из них: пособия, компенсации и иные социальные выплаты гражданам, кроме публичных нормативных обязательств | BA104: 2211 | BI104: 321 | BV104: х | CI104: 1,987,008.94 | CV104: =справочно!D69 -> 2,454,166.49 | DI104: 0.00 | DV104: =справочно!AD69 -> 0.00 | EI104: х
A105: приобретение товаров, работ,услуг в пользу граждан в целях их социального обеспечения | BI105: 323 | CI105: 3,230,461.91 | CV105: =справочно!D70 -> 2,797,423.39 | DI105: 0.00 | DV105: =справочно!AD70 -> 0.00
A106: выплата стипендий, осуществление иных расходов на социальную поддержку обучающихся за счет средств стипендиального фонда | BA106: 2220 | BI106: 340 | BV106: х | CI106: 3,952,150.88 | CV106: =справочно!D71 -> 4,174,400.00 | DI106: 0.00 | DV106: 0.00 | EI106: х
A107: иные выплаты текущего характера
A108: на премирование физических лиц за достижения в области культуры, искусства, образования, науки и техники, а также на предоставление грантов с целью поддержки проектов в области науки, культуры и искусства | BA108: 2230 | BI108: 350 | BV108: х | CI108: 15,000.00 | CV108: =справочно!D72 -> 18,000.00 | DI108: 15,000.00 | DV108: 15,000.00 | EI108: х
A109: иные выплаты населению | BA109: 2240 | BI109: 360 | BV109: х | EI109: х
A110: уплата налогов, сборов и иных платежей, всего | BA110: 2300 | BI110: 850 | BV110: х | CI110: =SUM(CI113:CU114) -> 2,731,502.33 | CV110: =SUM(CV113:DH114) -> 2,883,923.03 | DI110: =SUM(DI113:DU114) -> 2,798,521.00 | DV110: =SUM(DV113:EH114) -> 2,798,521.00 | EI110: х
A111: из них : | BA111: х | BI111: х | BV111: х
A112: средства федерального бюджета | BA112: х | BV112: х | CI112: 0.00 | CV112: 0.00 | DI112: 0.00 | DV112: 0.00
A113: средства областного бюджета | BA113: х | BV113: х | CI113: =2575783.34+1717 -> 2,577,500.34 | CV113: =2788521.66+70000 -> 2,858,521.66 | DI113: 2,788,521.00 | DV113: 2,788,521.00
A114: внебюджетные источники | BA114: х | BV114: х | CI114: 154,001.99 | CV114: =200+25201.37 -> 25,401.37 | DI114: 10,000.00 | DV114: 10,000.00
A115: из них: налог на имущество организаций и земельный налог | BA115: 2310 | BI115: 851 | BV115: х | CI115: 2,575,783.34 | CV115: =справочно!D76 -> 2,788,521.66 | DI115: 2,788,521.00 | DV115: 2,788,521.00 | EI115: х
A116: иные налоги (включаемые в состав расходов) в бюджеты бюджетной системы Российской Федерации, а также государственная пошлина | BA116: 2320 | BI116: 852 | BV116: х | CI116: 1,717.00 | CV116: =справочно!D77 -> 70,200.00 | DI116: 0.00 | DV116: 0.00 | EI116: х
A117: уплата штрафов (в том числе административных), пеней, иных платежей | BA117: 2330 | BI117: 853 | BV117: х | CI117: 154,001.99 | CV117: =справочно!D78 -> 25,201.37 | DI117: 10,000.00 | DV117: 10,000.00 | EI117: х
A118: безвозмездные перечисления организациям и физическим лицам, всего | BA118: 2400 | BI118: х | BV118: х | EI118: х
A119: из них : | BA119: х | BI119: х | BV119: х
A120: средства федерального бюджета | BA120: х | BV120: х
A121: средства областного бюджета | BA121: х | BV121: х
A122: внебюджетные источники | BA122: х | BV122: х
A123: из них: гранты, предоставляемые бюджетным учреждениям | BA123: 2410 | BI123: 613 | BV123: х | EI123: х
A124: гранты, предоставляемые автономным учреждениям | BA124: 2420 | BI124: 623 | BV124: х
A125: гранты, предоставляемые иным некоммерческим организациям (за исключением бюджетных и автономных учреждений) | BA125: 2430 | BI125: 634 | BV125: х
A126: гранты, предоставляемые другим организациям и физическим лицам | BA126: 2440 | BI126: 810 | BV126: х
A127: взносы в международные организации | BA127: 2450 | BI127: 862 | BV127: х
A128: платежи в целях обеспечения реализации соглашений с правительствами иностранных государств и международными организациями | BA128: 2460 | BI128: 863 | BV128: х | EI128: х
BV129: х
A130: прочие выплаты (кроме выплат на закупку товаров, работ, услуг) | BA130: 2500 | BI130: х | BV130: х | EI130: х
A131: из них : | BA131: х | BI131: х | BV131: х
A132: средства федерального бюджета | BA132: х | BV132: х
A133: средства областного бюджета | BA133: х | BV133: х
A134: внебюджетные источники | BA134: х | BV134: х
A135: исполнение судебных актов Российской Федерации и мировых соглашений по возмещению вреда, причиненного в результате деятельности учреждения | BA135: 2520 | BI135: 831 | BV135: х | EI135: х
A137: расходы на закупку товаров, работ, услуг, всего 5 | BA137: 2600 | BI137: х | BV137: х | CI137: =CI140+CI141 -> 19,196,243.31 | CV137: =CV140+CV141 -> 27,879,123.64 | DI137: =DI140+DI141 -> 19,055,379.00 | DV137: =DV140+DV141 -> 19,055,379.00
A138: из них : | BA138: х | BV138: х
A139: средства федерального бюджета | BA139: х | BV139: х | CI139: 0.00 | CV139: 0.00 | DI139: 0.00 | DV139: 0.00
A140: средства областного бюджета | BA140: х | BV140: х | CI140: =160760.64+26910+1036968.83+1159238.19+3852884.4+10731.86+420444.01+1027442.31+373142.96+1507434.58+89686+17959+149893+7505562.69 -> 17,339,058.47 | CV140: =160344.26+64986.89+591505.86+989401.74+3215236.62+15037.3+1666872.07+705748.05+7986302.3+10245271.13+230702.4+110005.2+43930.8 -> 26,025,344.62 | DI140: =160000+65000+600000+1373342+3500000+15037+1700000+1000000+8300000 -> 16,713,379.00 | DV140: 16,713,379.00
A141: внебюджетные источники | BA141: х | BV141: х | CI141: =1061.08+104766.11+632370.35+459256.97+12999+194420.47+452310.86 -> 1,857,184.84 | CV141: =370.8+141531.52+488130.64+530664.6+244521.54+448559.92 -> 1,853,779.02 | DI141: =1000+90000+550000+460000+500000+234705.8+452310.86+6983.34-60603.69+107603.69 -> 2,342,000.00 | DV141: =1000+90000+550000+460000+500000+234705.8+452310.86+6983.34-60603.69+107603.69 -> 2,342,000.00
A142: в том числе: закупку научно-исследовательских и опытно-конструкторских работ | BA142: 2610 | BI142: 241 | BV142: х
A143: закупку товаров, работ, услуг в целях капитального ремонта государственного (муниципального) имущества | BA143: 2630 | BI143: 243 | BV143: х
A144: прочую закупку товаров, работ и услуг, всего | BA144: 2640 | BI144: 244 | BV144: х | CI144: =SUM(CI146:CU155) -> 11,238,344.76 | CV144: =SUM(CV146:DH155) -> 19,444,261.42 | DI144: =SUM(DI146:DU155) -> 9,843,729.00 | DV144: =SUM(DV146:EH155) -> 9,843,729.00
A145: из них:
A146: услуги связи | CI146: 161,821.72 | CV146: =справочно!D96 -> 160,715.06 | DI146: 160,350.00 | DV146: 160,350.00
A147: транспортные услуги | CI147: 26,910.00 | CV147: =справочно!D97 -> 64,986.89 | DI147: 65,000.00 | DV147: 65,000.00
A148: коммунальные услуги | CI148: 1,514,877.90 | CV148: =справочно!D98 -> 733,037.38 | DI148: 730,000.00 | DV148: 730,000.00
A149: арендная плата за пользование имуществом | CI149: 0.00 | CV149: =справочно!D99 -> 0.00 | DI149: =справочно!Q99 -> 0.00 | DV149: =справочно!AD99 -> 0.00
A150: работы, услуги по содержанию имущества | CI150: 3,299,043.12 | CV150: =справочно!D100 -> 1,477,532.38 | DI150: 1,873,342.00 | DV150: 1,873,342.00
A151: прочие работы, услуги | CI151: 4,401,802.37 | CV151: =справочно!D101 -> 14,221,874.75 | DI151: 4,050,000.00 | DV151: 4,050,000.00
A152: страхование | CI152: 10,731.86 | CV152: =справочно!D102 -> 15,037.30 | DI152: 15,037.00 | DV152: 15,037.00
A153: иные выплаты текущего характера | CI153: 0.00 | CV153: 0.00 | DI153: 0.00 | DV153: 0.00
A154: увеличение стоимости основных средств | CI154: 451,402.01 | CV154: =справочно!D103 -> 1,776,877.27 | DI154: 1,700,000.00 | DV154: 1,700,000.00
A155: увеличение стоимости материальных запасов | CI155: 1,371,755.78 | CV155: =справочно!D104 -> 994,200.39 | DI155: 1,250,000.00 | DV155: 1,250,000.00
A156: закупку энергетических ресурсов | BA156: 2650 | BI156: 247 | BV156: х | CI156: 7,957,873.55 | CV156: =справочно!D108 -> 8,434,862.22 | DI156: 8,918,250.00 | DV156: 8,918,250.00
A157: капитальные вложения в объекты государственной (муниципальной) собственности, всего | BA157: 2660 | BI157: 400 | BV157: х
A158: в том числе: приобретение объектов недвижимого имущества государственными (муниципальными) учреждениями | BA158: 2661 | BI158: 406 | BV158: х
A159: строительство (реконструкция) объектов недвижимого имущества государственными (муниципальными) учреждениями | BA159: 2662 | BI159: 407 | BV159: х
BA160: 2660 | BV160: х
A161: Выплаты, уменьшающие доход, всего 6 | BA161: 3000 | BI161: 100 | BV161: х | CI161: =SUM(CI162) -> -82,847.00 | CV161: =SUM(CV162) -> -36,658.00 | DI161: =SUM(DI162) -> -40,000.00 | DV161: =SUM(DV162) -> -40,000.00 | EI161: х
A162: в том числе: налог на прибыль 6 | BA162: 3010 | BI162: 180 | BV162: х | CI162: -82,847.00 | CV162: -36,658.00 | DI162: -40,000.00 | DV162: -40,000.00 | EI162: х
A163: налог на добавленную стоимость 6 | BA163: 3020 | BV163: х | EI163: х
A164: прочие налоги, уменьшающие доход 6 | BA164: 3030 | BV164: х | EI164: х
A165: Прочие выплаты, всего ⁷ | BA165: 4000 | BI165: х | BV165: х | CI165: =SUM(CI167) -> 104,756.69 | CV165: =CV166 -> 70,665.73 | DI165: =SUM(DI167) -> 0.00 | DV165: =SUM(DV167) -> 0.00 | EI165: х
A166: из них: возврат в бюджет средств субсидии | BA166: 4010 | BI166: 610 | BV166: х | CV166: 70,665.73 | EI166: х
A167: уменьшение остатков денежных средств | CI167: =84738.8+20017.89 -> 104,756.69 | CV167: =121330+37132 -> 158,462.00 | DI167: 0.00 | DV167: 0.00
A168: в том числе: за счет средств федерального бюджета | EI168: х
A169: за счет средств областного бюджета | EI169: х
A171: _____2_В графе 3 отражаются:
A172: _____по строкам 1100 - 1900 - коды аналитической группы подвида доходов бюджетов классификации доходов бюджетов;
A173: _____по строкам 1980 - 1990 - коды аналитической группы вида источников финансирования дефицитов бюджетов классификации источников финансирования дефицитов бюджетов;
A174: _____по строкам 2000 - 2652 - коды видов расходов бюджетов классификации расходов бюджетов;
A175: _____по строкам 3000 - 3030 - коды аналитической группы подвида доходов бюджетов классификации доходов бюджетов, по которым планируется уплата налогов, уменьшающих доход (в том числе налог на прибыль, налог на добавленную стоимость, единый налог на вмененный доход для отдельных видов деятельности);
A176: _____по строкам 4000 - 4040 - коды аналитической группы вида источников финансирования дефицитов бюджетов классификации источников финансирования дефицитов бюджетов.
A177: _____3_По строкам 0001 и 0002 указываются планируемые суммы остатков средств на начало и на конец планируемого года, если указанные показатели по решению органа, осуществляющего функции и полномочия учредителя, планируются на этапе формирования проекта Плана либо указываются фактические остатки средств при внесении изменений в утвержденный План после завершения отчетного финансового года.
A178: _____4_Показатели прочих поступлений включают в себя в том числе показатели увеличения денежных средств за счет возврата дебиторской задолженности прошлых лет, включая возврат предоставленных займов (микрозаймов), а также за счет возврата средств, размещенных на банковских депозитах. При формировании Плана (проекта Плана) обособленному(ым) подразделению(ям) показатель прочих поступлений включает показатель поступлений в рамках расчетов между головным учреждением и обособленным подразделением.
A179: _____5_Показатели выплат по расходам на закупки товаров, работ, услуг, отраженные в строке 2600 Раздела 1 "Поступления и выплаты" Плана, подлежат детализации в Разделе 2 "Сведения по выплатам на закупку товаров, работ, услуг" Плана.
A180: _____6_Показатель отражается со знаком "минус".
A181: _____7_Показатели прочих выплат включают в себя в том числе показатели уменьшения денежных средств за счет возврата средств субсидий, предоставленных до начала текущего финансового года, предоставления займов (микрозаймов), размещения автономными учреждениями денежных средств на банковских депозитах. При формировании Плана (проекта Плана) обособленному(ым) подразделению(ям) показатель прочих выплат включает показатель поступлений в рамках расчетов между головным учреждением и обособленным подразделением.

Sheet справочно
A1: Справочно к разделу 1. Поступления и выплаты
A2: на 2022 год
A4: Наименование показателя | B4: Код строки | C4: Код по бюджетной классификации Российской Федерации | D4: Сумма, руб. ( с точностью до двух знаков после запятой. 0,00)
D5: Всего | E5: Субсидии на финансовое обеспечение выполнения государственного (муниципального) задания | F5: Субсидии, предоставляемые в соответствии с абзацем вторым пункта 1 статьи 78.1 БК РФ | G5: Субсидии на осуществление капитальных вложений | H5: Поступления от оказания услуг (выполнения работ) на платной основе и от иной приносящей доход деятельности
H6: Всего | I6: в том числе гранты
A7: 1 | B7: 2 | C7: 3 | D7: 4 | E7: 5 | F7: 6 | G7: 7 | H7: 8 | I7: 9
A8: Остаток средств на начало текущего финансового года | B8: =раздел.1_!BA8 -> 0001 | C8: х | D8: =SUM(D10+D11) -> 124,330.00 | E8: =SUM(E10) -> 0.00 | F8: =SUM(F10) -> 0.00 | G8: =SUM(G10) -> 0.00 | H8: =SUM(H10+H11) -> 124,330.00 | I8: 0.00
A9: в том числе:
A10: внебюджетные источники | C10: 131 | D10: 3,000.00 | H10: 3,000.00
A11: средства во временном распоряжении | C11: 510 | D11: 121,330.00 | H11: 121,330.00
A12: Доходы, всего: | B12: 1000 | C12: х | D12: =SUM(E12:H12) -> 98,544,685.22 | E12: =SUM(E13+E15+E28+E31+E44+E47+E50) -> 70,359,900.00 | F12: =SUM(F33) -> 23,785,207.12 | H12: =SUM(H13+H15+H28+H31+H48+H52) -> 4,399,578.10 | I12: =SUM(I13+I15+I28+I31+I44+I47+I50) -> 134,400.00
A13: в том числе: доходы от собственности, всего | B13: 1100 | C13: 120 | D13: =SUM(E13:H13) -> 912,749.27 | E13: =SUM(E14) -> 0.00 | F13: =SUM(F14) -> 0.00 | H13: =SUM(H14) -> 912,749.27
A14: в т.ч. внебюджетные источники | B14: 1101 | C14: 121 | D14: =SUM(E14:H14) -> 912,749.27 | H14: 912,749.27
A15: доходы от оказания услуг, работ, компенсации затрат учреждений, всего | B15: 1200 | C15: 130 | D15: 73,701,677.96 | E15: =SUM(E16) -> 70,359,900.00 | F15: =SUM(F16:F25) -> 0.00 | H15: =SUM(H25:H27) -> 3,341,777.96
A16: в том числе: субсидии на финансовое обеспечение выполнения государственного (муниципального) задания за счет средств бюджета публично-правового образования, создавшего учреждение | B16: 1201 | C16: 131 | D16: 70,359,900.00 | E16: =64605020+5754880 -> 70,359,900.00
A17: Реализация образовательных программ среднего профессионального образования - программ подготовки квалифицированных рабочих, служащих | B17: 1202 | C17: 131 | D17: 49,568,143.00 | E17: 49,568,143.00
A18: Реализация образовательных программ среднего профессионального образования - программ подготовки специалистов среднего звена | B18: 1203 | C18: 131 | D18: 38,842,911.00 | E18: 38,842,911.00
A19: Реализация основных профессиональных образовательных программ профессионального обучения - программ профессиональной подготовки по професиям рабочих, должностям служащих (адаптированная программа) | B19: 1204 | C19: 131 | D19: 4,087,560.00 | E19: 4,087,560.00
A20: Реализация основных профессиональных образовательных программ профессионального обучения - программ профессиональной подготовки по профессиям рабочих, должностям служащих (профессиональное обучение школьников) | B20: 1205 | C20: 131 | D20: 473,406.00 | E20: 473,406.00
A21: Предоставление питания | B21: 1206 | C21: 131 | D21: 4,855,667.00 | E21: 4,855,667.00
A22: Проживание в общежитии | B22: 1207 | C22: 131 | D22: 3,658,836.00 | E22: 3,658,836.00
A23: Организация деятельности специализированного центра компетенций | B23: 1208 | C23: 131 | D23: 202,406.00 | E23: 202,406.00
A24: Организация деятельности многофункционального центра прикладных квалификаций в профессиональных образовательных организациях | B24: 1209 | C24: 131 | D24: 1,556,215.00 | E24: 1,556,215.00
A25: внебюджетные источники | B25: 1210 | C25: 131 | D25: 2,606,289.33 | H25: 2,606,289.33
A26: внебюджетные источники | B26: 1211 | C26: 134 | D26: =SUM(E26:H26) -> 0.00 | H26: 0.00
A27: внебюджетные источники | B27: 1212 | C27: 135 | D27: 735,488.63 | H27: 735,488.63
A28: доходы от штрафов, пеней, иных сумм принудительного изъятия, всего | B28: 1300 | C28: 140 | D28: 2,868.43 | H28: =SUM(H30) -> 2,868.43
A29: в том числе: | D29: 0.00
A30: внебюджетные источники | B30: 1301 | C30: 141 | D30: 2,868.43 | H30: 2,868.43
A31: безвозмездные денежные поступления, всего | B31: 1400 | C31: 150 | D31: =SUM(D33+D43) -> 23,919,607.12 | E31: =SUM(E33) -> 0.00 | F31: =SUM(F33) -> 23,785,207.12 | G31: =SUM(G33) -> 0.00 | H31: =SUM(H43) -> 134,400.00 | I31: =SUM(I43) -> 134,400.00
A32: в том числе: | D32: 0.00
A33: субсидии на иные цели | C33: 152 | D33: =SUM(D34:D42) -> 23,785,207.12 | F33: =SUM(F34:F42) -> 23,785,207.12
A34: Выплата стипендии обучающимся по очной форме обучения в учреждениях среднего профессионального образования | C34: 152 | D34: 4,040,000.00 | F34: 4,040,000.00
A35: Обеспечение комплексной безопасности организаций образования: устранение предписаний надзорных органов (ГПН, РПН) | C35: 152 | D35: 10,405,271.13 | F35: 10,405,271.13
A36: Предоставление бесплатного питания отдельным категориям обучающихся организаций профессионального образования | C36: 152 | D36: 1,719,744.00 | F36: 1,719,744.00
A37: Оплата стоимости проезда и провоза багажа к месту использования отпуска (отдыха) и обратно | C37: 152 | D37: 736,625.33 | F37: 736,625.33
A38: Содержание детей-сирот, детей, оставшихся без попечения родителей, лиц из их числа в государственных областных профессиональных организациях | C38: 152 | D38: 3,358,290.06 | F38: 3,358,290.06
A39: Выплата ежемесячного денежного вознаграждения за классное руководство (кураторство) педагогическим работникам государственных образовательных организаций, реализующих образовательные программы среднего профессионального образования (ФБ) | C39: 152 | D39: =F39 -> 3,145,000.00 | F39: 3,145,000.00
A40: Выплата ежемесячного денежного вознаграждения за классное руководство (кураторство) педагогическим работникам государственных образовательных организаций, реализующих образовательные программы среднего профессионального образования (ОБ) | C40: 152 | D40: =F40 -> 143,000.00 | F40: 143,000.00
A41: Реализация движения "WorldSkills Россия на территории Мурманской области" | C41: 152 | D41: =F41 -> 89,276.60 | F41: 89,276.60
A42: Обеспечение проведения аттестации обучающихся по программам среднего профессионального образования с использованием механизма демонстрационного экзамена | C42: 152 | D42: =F42 -> 148,000.00 | F42: 148,000.00
A43: Стипендия Правительства РФ | C43: 152 | D43: =SUM(E43:H43) -> 134,400.00 | H43: 134,400.00 | I43: =H43 -> 134,400.00
A44: прочие доходы, всего | B44: 1500 | D44: 0.00
A45: в том числе: | C45: 180 | D45: 0.00
D46: 0.00
A47: доходы от операций с активами, всего | B47: 1900 | D47: 0.00
A48: в том числе: | C48: 410 | D48: 799.10 | H48: 799.10
D49: 0.00
A50: прочие поступления, всего | B50: 1980 | D50: 0.00
A51: в том числе: | D51: 0.00
A52: обеспечение контрактов | C52: 510 | D52: 6,983.34 | H52: =6983.34 -> 6,983.34
A53: средства во временном распоряжении | C53: 510 | D53: =H53 -> 215,181.00 | H53: =120330+57719+37132 -> 215,181.00
A54: Расходы, всего | B54: 2000 | C54: х | D54: =SUM(E54:H54) -> 98,440,361.49 | E54: =SUM(E55+E59+E67+E74+E94+E108) -> 70,359,900.00 | F54: =SUM(F55+F59+F67+F74+F91) -> 23,785,207.12 | H54: =SUM(H55+H59+H67+H74+H94+H108) -> 4,295,254.37 | I54: =SUM(I55+I59+I67+I74+I94) -> 134,400.00
A55: в том числе: на выплаты персоналу, всего | B55: 2100 | C55: х | D55: =SUM(D56:D58) -> 44,455,554.77 | E55: =SUM(E56:E58) -> 39,464,833.86 | F55: =SUM(F56:F58) -> 3,251,395.44 | H55: =SUM(H56:H58) -> 1,739,325.47
A56: в том числе: оплата труда | B56: 2110 | C56: 111 | D56: =SUM(E56:H56) -> 43,602,446.42 | E56: =39129987.9+170044+81859.96+1812.5 -> 39,383,704.36 | F56: =2434570.79+110652.8 -> 2,545,223.59 | H56: 1,673,518.47
A57: прочие выплаты персоналу, в том числе компенсационного характера | B57: 2120 | C57: 112 | D57: =SUM(E57:H57) -> 853,108.35 | E57: =5200+86360.5-10431 -> 81,129.50 | F57: =12638.2+693533.65 -> 706,171.85 | H57: 65,807.00
A58: иные выплаты, за исключением фонда оплаты труда учреждения, для выполнения отдельных полномочий | B58: 2130 | C58: 113 | D58: 0.00 | E58: 0.00 | H58: 0.00
A59: взносы по обязательному социальному страхованию на выплаты по оплате труда работников и иные выплаты работникам учреждений, всего | B59: 2140 | C59: х | D59: 13,777,770.17 | E59: =SUM(E60:E66) -> 12,469,097.57 | F59: =SUM(F60:F66) -> 785,868.09 | H59: =H60 -> 522,804.51
A60: в том числе: на выплаты по оплате труда | B60: 2141 | C60: 119 | D60: 13,777,770.17 | E60: 12,469,097.57 | F60: =710429.21+32347.2+43091.68 -> 785,868.09 | H60: 522,804.51
A61: на иные выплаты работникам | B61: 2142 | D61: 0.00
A62: денежное довольствие военнослужащих и сотрудников, имеющих специальные звания | B62: 2150 | D62: 0.00
A63: расходы на выплаты военнослужащим и сотрудникам, имеющим специальные звания, зависящие от размера денежного довольствия | B63: 2160 | D63: 0.00
A64: иные выплаты военнослужащим и сотрудникам, имеющим специальные звания | B64: 2170 | D64: 0.00
A65: страховые взносы на обязательное социальное страхование в части выплат персоналу, подлежащих обложению страховыми взносами | B65: 2180 | D65: 0.00
A66: в том числе: на оплату труда стажеров | B66: 2181 | D66: 0.00
A67: социальные и иные выплаты населению, всего | B67: 2200 | C67: х | D67: 9,443,989.88 | E67: =SUM(E68:E73) -> 172,011.82 | F67: =SUM(F68:F73) -> 9,118,034.06 | H67: =SUM(H68:H73) -> 153,944.00 | I67: =SUM(I68:I73) -> 134,400.00
A68: в том числе: социальные выплаты гражданам, кроме публичных нормативных социальных выплат | B68: 2210 | D68: 0.00
A69: из них: пособия, компенсации и иные социальные выплаты гражданам, кроме публичных нормативных обязательств | B69: 2211 | C69: 321 | D69: 2,454,166.49 | E69: 172,011.82 | F69: =250099+2030511.67 -> 2,280,610.67 | H69: 1,544.00
A70: приобретение товаров, работ,услуг в пользу граждан в целях их социального обеспечения | C70: 323 | D70: 2,797,423.39 | E70: 0.00 | F70: =1469645+1327778.39 -> 2,797,423.39 | H70: 0.00
A71: выплата стипендий, осуществление иных расходов на социальную поддержку обучающихся за счет средств стипендиального фонда | B71: 2220 | C71: 340 | D71: 4,174,400.00 | E71: 0.00 | F71: 4,040,000.00 | H71: 134,400.00 | I71: 134,400.00
A72: на премирование физических лиц за достижения в области культуры, искусства, образования, науки и техники, а также на предоставление грантов с целью поддержки проектов в области науки, культуры и искусства | B72: 2230 | C72: 350 | D72: 18,000.00 | E72: 0.00 | F72: 0.00 | H72: 18,000.00
A73: иные выплаты населению | B73: 2240 | D73: 0.00
A74: уплата налогов, сборов и иных платежей, всего | B74: 2300 | C74: х | D74: 2,883,923.03 | E74: =SUM(E76:E78) -> 2,858,521.66 | F74: =SUM(F76:F78) -> 0.00 | H74: =SUM(H76:H78) -> 25,401.37 | I74: =SUM(I76:I78) -> 0.00
A75: в том числе: | D75: 0.00
A76: налог на имущество организаций и земельный налог | B76: х | C76: 851 | D76: 2,788,521.66 | E76: 2,788,521.66 | F76: 0.00 | H76: 0.00
A77: иные налоги (включаемые в состав расходов) в бюджеты бюджетной системы Российской Федерации, а также государственная пошлина | B77: х | C77: 852 | D77: 70,200.00 | E77: 70,000.00 | F77: 0.00 | H77: 200.00
A78: уплата штрафов (в том числе административных), пеней, иных платежей | B78: х | C78: 853 | D78: 25,201.37 | E78: 0.00 | F78: 0.00 | H78: 25,201.37
A79: безвозмездные перечисления организациям и физическим лицам, всего
A80: в том числе:
A81: гранты, предоставляемые бюджетным учреждениям | B81: 2410
A82: гранты, предоставляемые автономным учреждениям | B82: 2420
A83: гранты, предоставляемые иным некоммерческим организациям (за исключением бюджетных и автономных учреждений) | B83: 2430
A84: гранты, предоставляемые другим организациям и физическим лицам | B84: 2440
A85: взносы в международные организации | B85: 2450
A86: платежи в целях обеспечения реализации соглашений с правительствами иностранных государств и международными организациями | B86: 2460
A87: прочие выплаты (кроме выплат на закупку товаров, работ, услуг) | B87: 2500 | C87: х
A88: в том числе :
A89: исполнение судебных актов Российской Федерации и мировых соглашений по возмещению вреда, причиненного в результате деятельности учреждения | B89: 2520
A91: расходы на закупку товаров, работ, услуг, всего | B91: 2600 | C91: х | D91: =D92+D93+D94+D105+D108 -> 27,879,123.64 | E91: =E94+E108 -> 15,395,435.09 | F91: =SUM(F93+F94) -> 10,629,909.53 | H91: =H94+H108 -> 1,853,779.02
A92: в том числе: закупку научно-исследовательских и опытно-конструкторских работ | B92: 2610
A93: закупку товаров, работ, услуг в целях капитального ремонта государственного (муниципального) имущества | B93: 2630 | D93: =SUM(E93:H93) -> 0.00
A94: прочую закупку товаров, работ и услуг, всего | B94: 2640 | C94: х | D94: =SUM(D96:D104) -> 19,444,261.42 | E94: =SUM(E95:E104) -> 7,409,132.79 | F94: =SUM(F95:F104) -> 10,629,909.53 | H94: =SUM(H95:H104) -> 1,405,219.10
A95: в том числе:
A96: услуги связи | C96: 244 | D96: =SUM(E96:H96) -> 160,715.06 | E96: 160,344.26 | F96: 0.00 | H96: 370.80
A97: транспортные услуги | C97: 244 | D97: =SUM(E97:H97) -> 64,986.89 | E97: 64,986.89 | F97: 0.00 | H97: 0.00
A98: коммунальные услуги | C98: 244 | D98: 733,037.38 | E98: 591,505.86 | F98: 0.00 | H98: 141,531.52
A99: арендная плата за пользование имуществом | C99: 244 | D99: 0.00 | E99: 0.00 | F99: 0.00 | H99: 0.00
A100: работы, услуги по содержанию имущества | C100: 244 | D100: 1,477,532.38 | E100: 989,401.74 | F100: 0.00 | H100: 488,130.64
A101: прочие работы, услуги | C101: 244 | D101: 14,221,874.75 | E101: =3255462.34-40225.72 -> 3,215,236.62 | F101: =230702.4+10245271.13 -> 10,475,973.53 | H101: 530,664.60
A102: страхование | C102: 244 | D102: 15,037.30 | E102: 15,037.30 | F102: 0.00 | H102: 0.00
A103: увеличение стоимости основных средств | C103: 244 | D103: 1,776,877.27 | E103: =1659714.07+7158 -> 1,666,872.07 | F103: 110,005.20 | H103: 0.00
A104: увеличение стоимости материальных запасов | C104: 244 | D104: 994,200.39 | E104: =2340+88554.58+127709.99+48547.5+600+407271.05+30724.93 -> 705,748.05 | F104: =5017.8+38913 -> 43,930.80 | H104: =186568.32+57807.42+145.8 -> 244,521.54
A105: капитальные вложения в объекты государственной (муниципальной) собственности, всего | B105: 2650 | C105: х
A106: в том числе: приобретение объектов недвижимого имущества государственными (муниципальными) учреждениями | B106: 2651
A107: строительство (реконструкция) объектов недвижимого имущества государственными (муниципальными) учреждениями | B107: 2652 | C107: 243
A108: закупку энергетических ресурсов | B108: 2660 | C108: 247 | D108: =E108+F108+H108 -> 8,434,862.22 | E108: 7,986,302.30 | H108: 448,559.92
A109: Выплаты, уменьшающие доход, всего | B109: 3000 | C109: х | D109: =SUM(D110:D112) -> -36,658.00 | H109: =SUM(H110:H112) -> -36,658.00
A110: в том числе: налог на прибыль | B110: 3010 | C110: 180 | D110: =SUM(E110:H110) -> -36,658.00 | H110: -36,658.00
A111: налог на добавленную стоимость | B111: 3020
A112: прочие налоги, уменьшающие доход | B112: 3030
A113: Прочие выплаты, всего | B113: 4000 | C113: х | D113: =SUM(D114:D116) -> 87,796.27 | H113: =SUM(H114:H116) -> 87,796.27
A114: в том числе:
A115: средства во временном распоряжении | C115: 610 | D115: =SUM(E115:H115) -> 158,462.00 | H115: =121330+37132 -> 158,462.00
A116: возврат по акту проверки | C116: 610 | D116: =SUM(E116:H116) -> -70,665.73 | H116: =-70665.68-0.05 -> -70,665.73
A117: Остаток средств на конец текущего финансового года | B117: 0002 | D117: =SUM(D119+D120) -> 178,049.00 | F117: =F8+F12-F54 -> 0.00 | H117: =SUM(H119+H120) -> 178,049.00
A118: в том числе:
A119: внебюджетные источники | C119: 131 | D119: =H119 -> -0.00 | H119: =H10+H12-H54+H109+H116 -> -0.00
A120: средства во временном распоряжении | C120: 510 | D120: =H120 -> 178,049.00 | H120: =H11+H53-H115 -> 178,049.00

Sheet раздел. 2_
B1: Раздел 2. Сведения по выплатам на закупки товаров, работ, услуг
A3: № п/п | H3: Наименование показателя | CL3: Коды строк | CT3: Год начала закупки | DB3: Код по бюджетной классификации Российской Федерации 8 | DN3: Сумма, руб. ( с точностью до двух знаков после запятой. 0,00)
DN4: на 20 | DT4: 21 | DW4: г. | DZ4: на 20 | EF4: 22 | EI4: г. | EL4: на 20 | ER4: 23 | EU4: г. | EX4: на 20 | FD4: 24 | FG4: г. | FJ4: за пределами планового периода
DN5: (отчетный финансовый год) | DZ5: (текущий финансовый год) | EL5: (1-ый год планового периода) | EX5: (2-ой год планового периода)
A6: 1 | H6: 2 | CL6: 3 | CT6: 4 | DB6: 4.1 | DN6: 5 | DZ6: 6 | EL6: 7 | EX6: 8 | FJ6: 9
A7: 1 | H7: Выплаты на закупку товаров, работ, услуг, всего ⁹ | CL7: 26000 | CT7: х | DN7: =DN10+DN16+DN43 -> 22,526,493.37 | DZ7: =DZ8+DZ9+DZ10+DZ20 -> 30,676,547.03 | EL7: =EL10+EL20 -> 20,406,105.25
A8: 1.1 | H8: в том числе: по контрактам (договорам), заключенным до начала текущего финансового года без применения норм Федерального закона от 5 апреля 2013 г. № 44-ФЗ "О контрактной системе в сфере закупок товаров, работ, услуг для обеспечения государственных и муниципальных нужд" (Собрание законодательства Российской Федерации, 2013, № 14, ст. 1652; 2018, № 32, ст. 5104) (далее - Федеральный закон № 44-ФЗ) и Федерального закона от 18 июля 2011 г. № 223-ФЗ "О закупках товаров, работ, услуг отдельными видами юридических лиц" (Собрание законодательства Российской Федерации, 2011, № 30, ст. 4571; 2018, № 32, ст. 5135) (далее - Федеральный закон № 223-ФЗ)10 | CL8: 26100 | CT8: х
A9: 1.2 | H9: по контрактам (договорам), планируемым к заключению в соответствующем финансовом году без применения норм Федерального закона № 44-ФЗ и Федерального закона № 223-ФЗ 10 | CL9: 26200 | CT9: х
A10: 1.3 | H10: по контрактам (договорам), заключенным до начала текущего финансового года с учетом требований Федерального закона № 44-ФЗ и Федерального закона № 223-ФЗ 11 | CL10: 26300 | CT10: х | DN10: =DN16 -> 10,423,347.26 | DZ10: =DZ11+DZ12+DZ13 -> 6,473,611.08 | EL10: =EL11+EL12+EL13 -> 20,406,105.25
CT11: х | DB11: 323 | DN11: =176074+70180+95095+246335.7+198350+843151.06+276494.95+559793 -> 2,465,473.71 | DZ11: =226371.99+226936.37+58504.6+585648.96+176903.16+576882.91 -> 1,851,247.99 | EL11: 5,412,577.23
CT12: х | DB12: 244 | DN12: 0.00 | DZ12: =80640+108000+12000+26615.01+22029.95+11151.8+51927.14+2096073.83+104.71+65557.38+1073150 -> 3,547,249.82 | EL12: 3,284,685.61
DB13: 247 | DN13: 7,957,873.55 | DZ13: =1075113.27 -> 1,075,113.27 | EL13: =1700000+9354500+654342.41 -> 11,708,842.41
A14: 1.3.1 | H14: в том числе: в соответствии с Федеральным законом № 44-ФЗ | CL14: 26310 | CT14: х | DB14: х
H15: из них 8: | CL15: 26310.1
A16: 1.3.2 | H16: в соответствии с Федеральным законом № 223-ФЗ | CL16: 26320 | CT16: х | DB16: х | DN16: =DN17+DN18+DN19 -> 10,423,347.26 | DZ16: =DZ10 -> 6,473,611.08 | EL16: =EL17+EL18+EL19 -> 0.00
CT17: х | DB17: 323 | DN17: =176074+70180+95095+246335.7+198350+843151.06+276494.95+559793 -> 2,465,473.71 | DZ17: =DZ11 -> 1,851,247.99
CT18: х | DB18: 244 | DN18: 0.00 | DZ18: =DZ12 -> 3,547,249.82
DB19: 247 | DN19: 7,957,873.55 | DZ19: =DZ13 -> 1,075,113.27
A20: 1.4 | H20: по контрактам (договорам), планируемым к заключению в соответствующем финансовом году с учетом требований Федерального закона № 44-ФЗ и Федерального закона № 223-ФЗ 11 | CL20: 26400 | CT20: х | DB20: 2,4,5 | DN20: =22426705.22-11148577.26 -> 11,278,127.96 | DZ20: =(19444261.42+8434862.22+2797423.39)-DZ10 -> 24,202,935.95
A21: 1.4.1 | H21: в том числе: за счет субсидий, предоставляемых на финансовое обеспечение выполнения государственного (муниципального) задания | CL21: 26410 | CT21: х | DN21: =DN22+DN23+DN24 -> 6,870,362.09 | DZ21: =DZ22+DZ23+DZ24 -> 11,072,093.04
DB22: 323 | DN22: 0.00 | DZ22: 0.00
DB23: 244 | DN23: 6,870,362.09 | DZ23: =7409132.79-80640-108000-12000-2096073.83-1073150 -> 4,039,268.96
DB24: 247 | DN24: 0.00 | DZ24: =7986302.3-953478.22 -> 7,032,824.08
A25: 1.4.1.1 | H25: в том числе: в соответствии с Федеральным законом № 44-ФЗ | CL25: 26411 | CT25: х
A26: 1.4.1.2 | H26: в соответствии с Федеральным законом № 223-ФЗ 12 | CL26: 26412 | CT26: х | DN26: =DN21 -> 6,870,362.09 | DZ26: =DZ21 -> 11,072,093.04 | EL26: =EL21 -> 0.00
A27: 1.4.2 | H27: за счет субсидий, предоставляемых в соответствии с абзацем вторым пункта 1 статьи 78.1 Бюджетного кодекса Российской Федерации | CL27: 26420 | CT27: х | DN27: =DN28+DN29 -> 2,141,482.20 | DZ27: =DZ28+DZ29+DZ30 -> 11,576,084.93 | EL27: =EL28+EL29+EL30 -> 0.00
DB28: 323 | DN28: 764,988.20 | DZ28: =2797423.39-DZ17 -> 946,175.40
DB29: 244 | DN29: 1,376,494.00 | DZ29: 10,629,909.53
DB30: 247
A31: 1.4.2.1 | H31: в том числе: в соответствии с Федеральным законом № 44-ФЗ | CL31: 26421 | CT31: х
H32: из них 8: | CL32: 26321.1
A33: 1.4.2.2 | H33: в соответствии с Федеральным законом № 223-ФЗ 12 | CL33: 26422 | CT33: х | DN33: =DN27 -> 2,141,482.20 | DZ33: =DZ27 -> 11,576,084.93 | EL33: =EL27 -> 0.00
A34: 1.4.3 | H34: за счет субсидий, предоставляемых на осуществление капитальных вложений 13 | CL34: 26430 | CT34: х
H35: из них 8: | CL35: 26430.1
A36: № п/п | H36: Наименование показателя | CL36: Коды строк | CT36: Год начала закупки | DB36: Код по бюджетной классификации Российской Федерации 8 | DN36: Сумма, руб. ( с точностью до двух знаков после запятой. 0,00)
DN37: на 20 | DT37: 21 | DW37: г. | DZ37: на 20 | EF37: 22 | EI37: г. | EL37: на 20 | ER37: 23 | EU37: г. | EX37: на 20 | FD37: 24 | FG37: г. | FJ37: за пределами планового периода
DN38: (текущий финансовый год) | DZ38: (текущий финансовый год) | EL38: (первый год планового периода) | EX38: (второй год планового периода)
A39: 1 | H39: 2 | CL39: 3 | CT39: 4 | DB39: 4.1 | DN39: 5 | DZ39: 5 | EL39: 6 | EX39: 7 | FJ39: 8
A40: 1.4.4 | H40: за счет средств обязательного медицинского страхования | CL40: 26440 | CT40: х
A41: 1.4.4.1 | H41: в том числе: в соответствии с Федеральным законом № 44-ФЗ | CL41: 26441 | CT41: х
A42: 1.4.4.2 | H42: в соответствии с Федеральным законом № 223-ФЗ 12 | CL42: 26442 | CT42: х
A43: 1.4.5 | H43: за счет прочих источников финансового обеспечения | CL43: 26450 | CT43: х | DN43: =DN46 -> 1,679,798.85 | DZ43: =DZ44+DZ46 -> 1,554,757.98 | EL43: =EL46 -> 1,430,350.00
A44: 1.4.5.1 | H44: в том числе: в соответствии с Федеральным законом № 44-ФЗ | CL44: 26451 | CT44: х
H45: из них 8: | CL45: 26451.1
A46: 1.4.5.2 | H46: в соответствии с Федеральным законом № 223-ФЗ | CL46: 26452 | CT46: х | DB46: 244 | DN46: 1,679,798.85 | DZ46: =1405219.1+448559.92-26615.01-22029.95-11151.8-51927.14-104.71-65557.38-121635.05 -> 1,554,757.98 | EL46: 1,430,350.00
A47: 2 | H47: Итого по контрактам, планируемым к заключению в соответствующем финансовом году в соответствии с Федеральным законом № 44-ФЗ, по соответствующему году закупки 14 | CL47: 26500 | CT47: х
H48: в том числе по году начала закупки: | CL48: 26510
A50: 3 | H50: Итого по договорам, планируемым к заключению в соответствующем финансовом году в соответствии с Федеральным законом № 223-ФЗ, по соответствующему году закупки | CL50: 26600 | CT50: х
H51: в том числе по году начала закупки: | CL51: 26610
A54: _____8_В случаях, если учреждению предоставляются субсидия на иные цели, субсидия на осуществление капитальных вложений или грант в форме субсидии в соответствии с абзацем первым пункта 4 статьи 78.1 Бюджетного кодекса Российской Федерации в целях достижения результатов федерального проекта, в том числе входящего в состав соответствующего национального проекта (программы), определенного Указом Президента Российской Федерации от 7 мая 2018 г. № 204 "О национальных целях и стратегических задачах развития Российской Федерации на период до 2024 года" (Собрание законодательства Российской Федерации, 2018, № 20, ст. 2817; № 30, ст. 4717), или регионального проекта, обеспечивающего достижение целей, показателей и результатов федерального проекта (далее - региональный проект), показатели строк 26310, 26421, 26430 и 26451 Раздела 2 "Сведения по выплатам на закупку товаров, работ, услуг" детализируются по коду целевой статьи (8 - 17 разряды кода классификации расходов бюджетов, при этом в рамках реализации регионального проекта в 8 - 10 разрядах могут указываться нули).
A55: _____9_Плановые показатели выплат на закупку товаров, работ, услуг по строке 26000 Раздела 2 "Сведения по выплатам на закупку товаров, работ, услуг" Плана распределяются на выплаты по контрактам (договорам), заключенным (планируемым к заключению) в соответствии с гражданским законодательством Российской Федерации (строки 26100 и 26200), а также по контрактам (договорам), заключаемым в соответствии с требованиями законодательства Российской Федерации и иных нормативных правовых актов о контрактной системе в сфере закупок товаров, работ, услуг для государственных и муниципальных нужд, с детализацией указанных выплат по контрактам (договорам), заключенным до начала текущего финансового года (строка 26300) и планируемым к заключению в соответствующем финансовом году (строка 26400) и должны соответствовать показателям соответствующих граф по строке 2600 Раздела 1 "Поступления и выплаты" Плана.
A56: _____10_Указывается сумма договоров (контрактов) о закупках товаров, работ, услуг, заключенных без учета требований Федерального закона № 44-ФЗ и Федерального закона № 223-ФЗ, в случаях, предусмотренных указанными федеральными законами.
A57: _____11_Указывается сумма закупок товаров, работ, услуг, осуществляемых в соответствии с Федеральным законом № 44-ФЗ и Федеральным законом № 223-ФЗ.
A58: _____12_Государственным (муниципальным) бюджетным учреждением показатель не формируется.
A59: _____13 -Указывается сумма закупок товаров, работ, услуг, осуществляемых в соответствии с Федеральным законом № 44-ФЗ.
A60: _____14_Плановые показатели выплат на закупку товаров, работ, услуг по строке 26500 государственного (муниципального) бюджетного учреждения должен быть не менее суммы показателей строк 26410, 26420, 26430, 26440 по соответствующей графе, государственного (муниципального) автономного учреждения - не менее показателя строки 26430 по соответствующей графе.

Sheet раздел. 3_
A1: 3. Сведения и показатели об использовании ресурсов учреждения
A2: на " 27 " декабря 2022 г.
A3: Наименование показателя | B3: Единицы измерения | C3: за _2021_ отчетный финансовый год | D3: на _2022_ текущий финансовый год | E3: на _2023_ 1-ый год планового периода | F3: на _2024_ 2-ой год планового периода | G3: за пределами планового периода
A4: 1 | B4: 2 | C4: 3 | D4: 4 | E4: 5 | F4: 6 | G4: 7
A5: 1. Сведения об уровне оплаты труда работников учреждения | B5: х | C5: х | D5: х | E5: х | F5: х | G5: х
A6: 1.1. Фонд оплаты труда, всего | B6: тыс. руб. | C6: 18,764.07 | D6: =D9+D11 -> 23,806.69 | E6: 24,759 | F6: 25,749
A7: из них: выплаты стимулирующего характера | B7: тыс. руб. | C7: =C10+C12 -> 5,750.00 | D7: 6,692.71 | E7: 6,960.42 | F7: 7,238.84
A8: в том числе:
A9: 1.1.1.Фонд оплаты труда руководителей учреждения и их заместителей | B9: тыс. руб. | C9: 7,500.00 | D9: =8249.4-1575.99-5.56 -> 6,667.85 | E9: 6,935 | F9: 7,212
A10: из них: выплаты стимулирующего характера | B10: тыс. руб. | C10: 2,700.00 | D10: =2740.35-564.66 -> 2,175.69 | E10: 2,263 | F10: 2,353
A11: 1.1.2. Фонд оплаты труда прочих работников учреждения | B11: тыс. руб. | C11: 11,264.07 | D11: =15862.23+1575.99-18.28-136.45-144.65 -> 17,138.84 | E11: 17,824 | F11: 18,537
A12: из них: выплаты стимулирующего характера | B12: тыс. руб. | C12: 3,050.00 | D12: =3952.36+564.66 -> 4,517.02 | E12: 4,698 | F12: 4,886
A13: 1.2. Фонд оплаты труда, отдельных категорий работников бюджетной сферы, повышение оплаты труда которых предусмотрено указами Президента РФ, всего | B13: тыс. руб. | C13: 15,171.27 | D13: =20098.8-2240.27 -> 17,858.53 | E13: 19,111.20 | F13: 20,502.90
A14: в т.ч. педагогический персонал | B14: тыс. руб. | C14: 15,171.27 | D14: 17,858.53 | E14: 19,111.20 | F14: 20,502.90
A15: 1.3. Среднесписочная численность работников учреждения | B15: чел. | C15: 51.80 | D15: 52.90 | E15: 52.90 | F15: 52.90
A16: в том числе:
A17: 1.3.1. Среднесписочная численность руководителей учреждения и их заместителей | B17: чел. | C17: 6.00 | D17: 4.00 | E17: 4.00 | F17: 4.00
A18: 1.3.2. Среднесписочная численность прочих работников учреждения | B18: чел. | C18: 24.30 | D18: 27.10 | E18: 27.10 | F18: 27.10
A19: 1.4. Среднесписочная численность работников учреждения, с которыми заключены эффективные контракты | B19: чел. | C19: 51.80 | D19: 52.90 | E19: 52.90 | F19: 52.90
A20: в том числе:
A21: 1.4.1. Среднесписочная численность руководителей учреждения и их заместителей, с которыми заключены эффективные контракты | B21: чел. | C21: 6.00 | D21: 4.00 | E21: 4.00 | F21: 4.00
A22: 1.4.2. Среднесписочная численность прочих работников учреждения, с которыми заключены эффективные контракты | B22: чел. | C22: 24.30 | D22: 27.10 | E22: 27.10 | F22: 27.10
A23: 1.5. Среднесписочная численность, отдельных категорий работников бюджетной сферы, повышение оплаты труда которых предусмотрено указами Президента РФ, всего | B23: чел. | C23: 21.50 | D23: 21.80 | E23: 21.80 | F23: 21.80
A24: в том числе по категориям работников: педагогический персонал | B24: чел. | C24: 21.50 | D24: 21.80 | E24: 21.80 | F24: 21.80
A25: 1.6. Средняя заработная плата, необходимая для реализации указов Президента РФ, предусматривающих повышение оплаты труда отдельных категорий работников бюджетной сферы | B25: руб. | C25: 63,700.00 | D25: 70,300.00 | E25: 73,055.00 | F25: 78,375.00
A26: 1.7. Средняя заработная плата, сложившаяся/прогнозируемая в отчетном периоде | B26: руб. | C26: х | D26: х | E26: х | F26: х | G26: х
A27: в том числе по категориям работников, повышение оплаты труда которых предусмотрено указами Президента РФ: | C27: =C28 -> 63,860.00 | D27: 68,266.60 | E27: =E28 -> 73,055.00 | F27: =F28 -> 78,375.00
A28: педагогический персонал (преподаватели, мастера ПО) | C28: 63,860.00 | D28: 68,266.60 | E28: 73,055.00 | F28: 78,375.00
A29: 1.8. Отношение средней заработной платы руководителей учреждения и их заместителей к средней заработной плате работников учреждения | B29: % | D29: 2.329 | E29: 2.299 | F29: 2.251
A30: 1.9. Отношение средней заработной платы, сложившейся/прогнозируемой в отчетном периоде к средней заработной плате, необходимой для реализации указов Президента РФ | B30: % | C30: х | D30: х | E30: х | F30: х | G30: х
A31: в том числе по категориям работников, повышение оплаты труда которых предусмотрено указами Президента РФ: | B31: % | D31: 2.035 | E31: 1.984 | F31: 1.914
A32: педагогический персонал (преподаватели, мастера ПО) | C32: х | D32: х | E32: х | F32: х
A33: 2. Сведения об использовании имущества учреждения | B33: х | C33: 10,527.90 | D33: 10,527.90 | E33: 10,527.90 | F33: 10,527.90 | G33: х
A34: 2.1. Общая площадь объектов недвижимого имущества, закрепленная за учреждением | B34: м²
A35: в том числе: | C35: 10,527.90 | D35: 10,527.90 | E35: 10,527.90 | F35: 10,527.90
A36: 2.1.1. Площадь недвижимого имущества в безвозмездном пользовании, всего | B36: м² | C36: 137.4 | D36: 137.4 | E36: 137.4 | F36: 137.4
A37: 2.1.2.Площадь недвижимого имущества в безвозмездном пользовании, не используемая для выполнения государственного задания | B37: м² | C37: 239.3 | D37: 239.3 | E37: 239.3 | F37: 239.3
A38: 2.1.3. Площадь недвижимого имущества, переданная в аренду | B38: м² | D38: 23,626.52 | E38: 23,626.52 | F38: 23,626.52
A39: 2.2. Затраты на содержание имущества учреждения | B39: тыс. руб.
A40: в том числе: | C40: 850.0 | D40: 1,154.3 | E40: 1,155.0 | F40: 1,155.0
A41: 2.2.1. Затраты на содержание имущества учреждения, не используемого для выполнения государственного задания | B41: тыс. руб. | C41: 0.47 | D41: 0.47 | E41: 0.47 | F41: 0.47
A42: 2.3. Коэффициент износа основных средств (отношение величины износа основных средств на конец отчетного периода к стоимости основных средств учреждения на конец отчетного периода) | B42: ед. | C42: 0.01 | D42: 0.01 | E42: 0.01 | F42: 0.01
A43: 2.4. Коэффициент обновления основных средств (отношение стоимости основных средств поступивших за отчетный период к общей стоимости основных средств учреждения на конец отчетного периода) | B43: ед.
A44: 2.5. Коэффициенты ремонта зданий, характеризующие величину фактических расходов на капитальный ремонт зданий, приходящуюся на один рубль балансовой стоимости основных средств (в том числе за счет бюджетных средств) | B44: ед.
A45: в том числе:
B46: ед.

Sheet раздел. 4_
A1: Раздел 4. Перечень мероприятий по повышению эффективности деятельности учреждения
A2: на " 27 " декабря 2022 г.
A4: Наименование мероприятия | B4: Сроки проведения | C4: Ожидаемый результат реализации | E4: Затраты, необходимые на проведение мероприятия, тыс. руб
A5: 1. Повышение эффективности управления и кадрового потенциала учреждения | B5: в течение года | C5: Отслеживание изменений в законодательстве и применение их в работе; Контроль, учет, безопасность выполнения ПТЭУ; Безопасная эксплуатация электроустановок | E5: =20.4+20+10 -> 50.4
A6: 2. Повышение эффективности управления государственной собственностью | B6: - | C6: - | E6: -
A7: 3. Повышение качества предоставления государственных услуг | B7: 05.12.2022 - 10.12.2022 | C7: Повышение квалификации в практике подготовки обучающихся в соответствии с современными стандартами и передовыми технологиями | E7: =41.084+43.685 -> 84.8
A8: 4. Направления оптимизации расходов учреждения | B8: в течение года | C8: Режим экономии энергоресурсов и водоснабжения в учреждении | E8: 0.0
A9: Итого: | B9: х | C9: х | E9: =SUM(E5:E8) -> 135.2
A11: Ответственное должностное лицо: | B11: Главный бухгалтер | C11: ____________________ | E11: Манаенкова О.А.
B12: (должность) | C12: (подпись) | E12: (расшифровка подписи)
A13: Исполнитель | B13: Главный бухгалтер | C13: ____________________ | E13: Манаенкова О.А. | AI13: (должность) | BC13: (подпись) | BQ13: (расшифровка подписи)
B14: (должность) | C14: (фамилия, инициалы) | E14: (телефон)
A16: "27" декабря 2022 г.
AE17: (должность) | AY17: (фамилия, инициалы) | BS17: (телефон)
A18: СОГЛАСОВАНО:
A21: (наименование должности уполномоченного лица органа, осуществляющего функции и полномочия учредителя)
A22: ___________________ | B22: ____________________________
A23: (подпись) | B23: (расшифровка подписи)
A24: "___" __________ 20___ г. »

Sheet Обоснование 2022
F1: Приложение
A2: Расчет (обоснование) фактически произведенных расходов за счет средств субсидии на ГЗ за 2022 год
A4: Наименование расходов* | B4: КВР | C4: КОСГУ | D4: Ед.изм. | E4: Количество | F4: Расчет | G4: Сумма, руб.
A5: Затраты на оплату труда, в том числе: | E5: =E7+E8+E9+E10+E11+E12 -> 52.9 | G5: =G7+G8+G9+G10+G11+G12+G19+G14 -> 51,933,931.43
A6: Затраты на оплату труда, в том числе: | B6: 111 | C6: х | D6: х | G6: =G7+G8+G9+G10+G11+G12 -> 39,383,704.36
A7: Заработная плата руководителя | B7: 111 | C7: 211 | D7: чел. | E7: 1 | G7: 1,369,095.57
A8: Заработная плата заместителей директора, главного бухгалтера | B8: 111 | C8: 211 | D8: чел. | E8: 3 | G8: 4,342,196.84
A9: Заработная плата руководителей структурных подразделений | B9: 111 | C9: 211 | D9: чел. | E9: 2 | G9: 1,557,039.05
A10: Заработная плата педагогического персонала ("указники") | B10: 111 | C10: 211 | D10: чел. | E10: 21.8 | G10: 17,570,016.12
A11: Заработная плата прочего педагогического персонала | B11: 111 | C11: 211 | D11: чел. | E11: 5.4 | G11: 3,456,675.72
A12: Заработная плата вспомогательного, прочего персонала | B12: 111 | C12: 211 | D12: чел. | E12: 19.7 | G12: =39366733.18-G11-G10-G9-G8-G7+16971.18 -> 11,088,681.06
A13: Пособие по временной нетрудоспособности за счет работодателя | B13: 111 | C13: 266 | D13: чел. | E13: 27 | G13: 171,856.50
A14: Прочие выплаты | B14: 112 | C14: х | D14: х | G14: =SUM(G15:G18) -> 81,129.50
A15: Командировочные расходы (суточные) | B15: 112 | C15: 212 | D15: усл. | F15: 2 чел. * 3 дн * 500 руб; 22 дн (5 чел.) * 100 руб. | G15: 5,200.00
A16: Командировочные расходы (проезд) | B16: 112 | C16: 226 | D16: усл. | G16: =39169+9353.5 -> 48,522.50
A17: Командировочные расходы (проживание) | B17: 112 | C17: 226 | D17: усл. | G17: 6,050.00
A18: Возмещение вход. мед. осмотра сотрудникам | B18: 112 | C18: 226 | D18: чел. | E18: 4 | F18: (7375,00, 1590,00, 5985,00, 6407,00) | G18: 21,357.00
A19: Начисления на выплаты по оплате труда | B19: 119 | C19: 213 | D19: руб. | E19: - | G19: 12,469,097.57
A20: Затраты на приобретение услуг связи, в том числе: | G20: =G21+G22+G23+G24+G25 -> 160,344.26
A21: Услуги связи по передаче данных | B21: 244 | C21: 221 | D21: усл. | E21: 1 | F21: 1,544.00 | G21: 1,544.00
A22: Предоставление абонентской линии (кол-во номеров) | B22: 244 | C22: 221 | D22: кол-во | E22: 6 | F22: 6 номеров
A23: Выделенный доступ в сети интернет | B23: 244 | C23: 221 | D23: ус.л. | E23: 11 | F23: 4500, янв-июль 3700, авг - нояб. 4060 | G23: 91,640.00
A24: Услуги почтовой связи (кол-во отправлений) | B24: 244 | C24: 221 | D24: шт. | E24: 395 | F24: 395 отправлений | G24: 18,612.94
A25: Услуги телефонной связи (местной, внутризоновой, междугородней телефонной связи) | B25: 244 | C25: 221 | D25: мин. | E25: =4314+6932+341 -> 11587 | F25: внутризоновые - 4314 мин; местные - 6932 мин; междугородные - 341 мин | G25: 48,547.32
A26: Затраты на приобретение транспортных услуг, в том числе: | G26: =SUM(G27:G28) -> 64,986.89
A27: Найм транспортных средств | B27: 244 | C27: 222 | D27: усл. | E27: 2 | F27: Фрахтование (студенты) | G27: 50,986.89
A28: Доставка грузов | B28: 244 | C28: 222 | D28: усл. | E28: 1 | F28: 1*14000 | G28: 14,000.00
A29: Затраты на приобретение коммунальных услуг, в том числе: | G29: =G30+G31+G32+G33+G34+G35 -> 8,577,808.16
A30: Электроснабжение (Квт/ч) | B30: 247 | C30: 223 | D30: Тыс.квт/ч | E30: 183312 | F30: 183312 кВт/ч * 4,96 | G30: 953,478.22
A31: Теплоснабжение (гКал) | B31: 247 | C31: 223 | D31: Гкал | F31: отопление1804,887 Гкал * 3819,2 компонент на теплоноситель 1029,467 м3 * 41,14 | G31: 7,032,824.08
A32: Водоснабжение (питьевая вода) (м3) | B32: 244 | C32: 223 | D32: куб.м | E32: 2142 | F32: 2142 м3 * 41,48 | G32: 88,912.25
A33: Водоотведение (м3) | B33: 244 | C33: 223 | D33: куб. м | E33: 3171.47 | F33: 3171,47 м3 * 89,63 | G33: 283,111.03
A34: Вывоз ТКО (услугами регионального оператора) | B34: 244 | C34: 223 | D34: усл. | E34: 12 | F34: 14143,56 в мес. | G34: 169,724.67
A35: Расходы на ОДН | B35: 244 | C35: 223 | D35: усл. | E35: 12 | F35: дек 2021 - 6096,71; янв. - 6096,70; фев. - 5193,53; март - 4974,51; апр. - 4286,67; май - 3261,81; июнь - 3261,81; июль - 2333,33; август - 1734,66; сент. - 2400,69; окт. - 4879,34; нояб. - 5238,16. | G35: 49,757.91
A36: Затраты на содержание недвижимого имущества, в том числе: | G36: =SUM(G37:G46) -> 2,909,505.25
A37: Дератизация-дезинсекция помещений, зданий | B37: 244 | C37: 225 | D37: усл. | E37: 2 | G37: 4,725.51
A38: Обслуживание и уборка помещений, зданий, очистка кровли | B38: 244 | C38: 225 | D38: усл. | E38: 2 | F38: ГПХ (+взносы) уборка 2 эт. | G38: =12627.38+1997.27 -> 14,624.65
A39: Содержание прилегающей территории | B39: 244 | C39: 225 | D39: усл. | E39: 1 | F39: покос травы, уборка срубленных ветвей (ГПХ) 24105,79 | G39: 24,105.79
A40: Техническое обслуживание индивидуального теплового пункта | B40: 244 | C40: 225 | D40: усл. | E40: 13 | F40: т/о теплового пункта 2000 руб.* 1 мес.; 1500*12 = 20000 очистка приборов учета 19965 | G40: =20000+19965 -> 39,965.00
A41: Техническое обслуживание отопительной системы, в том числе на подготовку к зимнему сезону | B41: 244 | C41: 225 | D41: усл. | E41: 1 | F41: гидропневмопромывка и опрессовка 45000 | G41: =45000 -> 45,000.00
A42: Содержание и текущий ремонт общего имущества МКД | B42: 244 | C42: 225 | D42: усл. | E42: 12 | F42: 2 этаж общежития 17145,61 *12 мес. (27,97 руб./1 кв.м/мес.) | G42: 205,747.32
A43: Поверка приборов учета | B43: 244 | C43: 225 | D43: усл. | E43: 2 | F43: 22281,24 - поверка весов; 17066,44 - поверка манометров, гигрометров, термометров, измерителя артериального давления | G43: =22281.24+17066.44 -> 39,347.68
A44: Проведение текущего ремонта недвижимого имущества (площадь помещения, планируемая к проведению текущего ремонта) | B44: 244 | C44: 225 | D44: усл. | E44: 1 | F44: ремонт кабинетов № 46 и 47 40036,48 | G44: 40,036.48
A45: Охрана недвижимого имущества, в том числе вневедомственная, обеспечение пожарной безопасности, мониторинг систем охранно-пожарной сигнализации | B45: 244 | C45: 225 | D45: мес. | E45: 12 | F45: - Т/о оборудования для передачи сигнала пож.тревога в деж.часть ПЧ (Валдай) (4000; 5500) 70000; - Передача сообщение в подразделения нац.гвардии (Валдай) 116000 (8000, 9000) | G45: =70000+116000 -> 186,000.00
B46: 244 | C46: 226 | D46: мес. | E46: 12 | F46: - вневедомственная (УВО ВНГ вневедомственная охр. наряд) 84688,04; - Охранная сигнализ. путем наблюдения на ПЦО (Вымпел) (6812,47, 9731,54) 123590,95 - физ. охрана (Страйк) 2096073,83 - услугим связи на обеспечение бесперебойной связи на тревожных кнопках 5600 | G46: =84688.04+123590.95+2096073.83+5600 -> 2,309,952.82
A47: Затраты на содержание особо ценного движимого имущества, в том числе: | G47: =SUM(G48:G51) -> 309,136.41
A48: Техническое обслуживание и ремонт транспортных средств, техосмотр | B48: 244 | C48: 225 | D48: усл. | F48: Ремонт Т/С 28059,75 + 4521,92; Предрейсовый техосмотр 201 * 23; 233,50 * 200 посещ. = 46186 | G48: =28059.75+4521.92+46186 -> 78,767.67
A49: Техническое обслуживание и регламентно-профилактический ремонт прочего особо ценного оборудования | B49: 244 | C49: 225 | D49: усл. | E49: 3 | F49: ремонт холодильника по ГПХ+взн. 5697,89; ремонт стиральных машин 6000; ремонт с выдачей тех. заключения 6000 | G49: =5697.89+6000+6000 -> 17,697.89
A50: Техническое обслуживание и регламентно-профилактический ремонт систем видеонаблюдения | B50: 244 | C50: 225 | D50: усл. | E50: 12 | F50: Видеонаблюдение (Выпмел) (12381,56, 16841,09) | G50: 197,633.55
A51: Обязательное страхование гражданской ответственности владельцев автотранспортных средств | B51: 244 | C51: 227 | D51: усл. | E51: 2 | F51: ОСАГО К996ЕН51 6616,41 С506ЕН51 8420,89 | G51: 15,037.30
A52: Затраты на прочие общехозяйственные нужды, в том числе: | G52: =G53+G57+G68+G73 -> 3,373,654.12
A53: 225 | G53: =SUM(G54:G56) -> 95,750.20
A54: Стирка и обработка постельных принадлежностей и прочего мягкого инвентаря | B54: 244 | C54: 225 | D54: усл. | E54: 1 | G54: 30,000.20
A55: Техническое обслуживание - поверка диэлектрических перчаток, ТО пожарного оборудования(запрака огнетушителей, испытание рукавов) | B55: 244 | C55: 225 | D55: усл. | E55: 2 | F55: диэлектрические перчатки - перезарядка огнетушителей 14700; - испытание пожарных лестниц 12000; - испытание пож. водопровода 2 * 13000 | G55: =14700+12000+26000 -> 52,700.00
A56: Заправка картриджей | B56: 244 | C56: 225 | D56: усл. | E56: 1 | G56: 13,050.00
A57: 226 | G57: =SUM(G58:G67) -> 905,283.80
A58: Организация питания участников соревнований | B58: 244 | C58: 226 | D58: усл. | E58: 4 | F58: дем. экзамен "Электромонтаж" в КИКе 2200 Надежда Отечества 2696,76 Сварочные технологии "WorldSkills" 1800 Обработка листового металла дем.экзамен 20600 | G58: 27,296.76
A59: Прочие расходы на участников моревнований | B59: 224 | C59: 226 | D59: усл. | F59: Проживание участников сореснований в МИКе 5850 | G59: 108,013.02
A60: Лицензирование и сопровождение информационно-правовых и бухгалтерских программ | B60: 244 | C60: 226 | D60: усл. | E60: 10 | F60: Контур-Эксерн 6176 Диплом-Стандарт 3240 Kaspersky 2702,70 Коннект фильтрация 12800 Госфинансы 13678 Госзаказ 21255 Сайт mypek 4800 Кола Дигеста 1С 73632 Консультант 93970 Продление домена mypek.ru 1099 Сертификат ФИС ФРДО 2900 Образовательная платформа Юрайт 20094 | G60: =6176+3240+2702.7+12800+13678+21255+4800+73632+93970+1099+20094+2900 -> 256,346.70
A61: Подписка на периодические издания | B61: 244 | C61: 226 | D61: усл. | E61: 3 | F61: 2 полугодие 2022 - 27968,49; 1 полугодие 2023 - 32878,50 Городское время 1479 | G61: =27968.49+32878.5+1479 -> 62,325.99
A62: Проведение предрейсовых осмотров водителей (кол-во осмотров) | B62: 244 | C62: 226 | D62: усл. | F62: 326 дн * 120 руб. | G62: =2420+36740 -> 39,160.00
A63: Медицинские осмотры персонала | B63: 244 | C63: 226 | D63: усл. | E63: 1 | F63: 52 чел. (13 М, 39 Ж) | G63: =153710 -> 153,710.00
A64: Семинары, обучения, курсы повышения квалификации | B64: 244 | C64: 226 | D64: усл. | E64: 4 | F64: - обслуж. тепл. энергоуст. и тепл. сетей 10000 - электробезопасность 20000 - гл.бух. 10878 + 9500 | G64: =10000+20000+10878+9500 -> 50,378.00
A65: Проведение санитарно-противоэпидемиологических исследований и производственного контроля | B65: 244 | C65: 226 | D65: усл. | E65: 2 | F65: гигиенич. аттестация 4900, отбор пробы воды 4879,73 | G65: =4900+1463.92+3415.82 -> 9,779.74
A66: Оргвзнос WorldSkills | B66: 244 | C66: 226 | D66: усл. | E66: 2 | F66: КИК 51230 МИК 30700 | G66: =51230+30700 -> 81,930.00
A67: Вознаграждения по ГПД (с начислениями) | B67: 244 | C67: 226 | D67: усл. | G67: 116,343.59
A68: 310 | G68: =SUM(G69:G72) -> 1,666,872.07
A69: Библиотечный фонд | B69: 244 | C69: 310 | D69: усл. | G69: 148,648.07
A70: Приобретение компьютеров, оргтехники | B70: 244 | C70: 310 | D70: усл. | G70: 243,690.00
A71: Приобретение бытовых приборов, мебели | B71: 244 | C71: 310 | D71: усл. | G71: 144,899.00
A72: Приобретение оборудования, прочих ОС | B72: 244 | C72: 310 | D72: усл. | G72: =1122477+7158 -> 1,129,635.00
A73: 340 | G73: =SUM(G74:G81) -> 705,748.05
A74: Перевязочные средства и медикаменты | B74: 244 | C74: 341 | D74: закупка | E74: 2 | G74: 12,337.17
A75: Приобретение питьевой воды (бутылка) | B75: 244 | C75: 342 | D75: шт. | E75: 269 | F75: 1 бут. - 320 руб. | G75: 88,554.58
A76: ГСМ | B76: 244 | C76: 343 | D76: л. | E76: 2024.78 | F76: АИ 95-1356,25 л. ; АИ 92-668,53 л. | G76: 128,209.99
A77: Электро и строительные материалы | B77: 244 | C77: 344 | D77: шт. | G77: 48,547.50
A78: Спецодежда, обувь и мягкий инвентарь для работников | B78: 244 | C78: 345 | D78: шт. | E78: 1 | G78: 600.00
A79: Приобретение двигателя на ВАЗ | B79: 244 | C79: 346 | D79: шт. | E79: 1 | G79: =119000+7772 -> 126,772.00
A80: Хозяйственные материалы, моющие и чистящие средства | B80: 244 | C80: 346 | D80: шт. | G80: 289,330.48
A81: Канцелярские товары | B81: 244 | C81: 346 | D81: шт. | G81: 11,396.33
A82: Пособия и компенсации гражданам и иные социальные выплаты | B82: 321 | C82: 264 | D82: мес. | E82: 4 | F82: Средний заработок на период трудоустройства | G82: 172,011.82
A83: Налог на имущество | B83: 851 | C83: 291 | D83: кварт. | E83: 4 | F83: Среднегод ст-ть недвиж. имущ. * 2,2% | G83: 2,517,324.66
A84: Земельный налог | B84: 851 | C84: 291 | D84: кварт. | E84: 4 | F84: Кадастровая ст-ть земельного участка (15 110 000 * 1,5%) | G84: 271,197.00
A85: Уплата прочих налогов, сборов | B85: 852 | C85: 291 | D85: усл. | E85: 1 | F85: госпошлина за переоформление свид-ва о гос. регистр. в связи с гос. аккредит. ранее не аккредит. образоват. программ | G85: 70,000.00
A87: Справочно: Учебные расходы, в том числе: | G87: =SUM(G88:G101) -> 2,123,377.07
A88: Курсы повышения квалификации (проезд, проживание пед.работника) | B88: 112 | C88: 226 | D88: чел. | E88: 2 | G88: 44,669.00
A89: Курсы повышения квалификации (суточные) | B89: 112 | C89: 212 | D89: чел. | E89: 2 | G89: 4,200.00
A90: Командировочные расходы (суточные) | B90: 112 | C90: 212 | D90: чел. | E90: 4 | G90: 1,000.00
A91: Командировочные расходы (проезд, проживание пед. работника | B91: 112 | C91: 226 | D91: чел. | E91: 9 | G91: 7,032.60
A92: Командировочные расходы (расходы на учащихся) | B92: 224 | C92: 226 | D92: чел. | E92: 53 | G92: 100,553.72
A93: Медосмотр (педагоги, мастера) | B93: 244 | C93: 226 | D93: чел. | E93: 25 | G93: 89,362.00
A94: Библиотечный фонд | B94: 244 | C94: 310 | D94: шт. | E94: 115 | G94: 148,648.07
A95: Комплект развертывания технических средств обработки профессиональных навыков в учебно-производственной мастерской по компетенции "Метрология" | B95: 244 | C95: 310 | D95: комп. | E95: 1 | G95: 1,073,150.00
A96: Оборудование для проведения дем. экзамена (Трансформаторы, доска-флипчарт, телевизор, принтер,шкаф металлический, стол офисный, стул офисный, доска информационная, стенд) | B96: 244 | C96: 310 | D96: шт. | E96: 31 | G96: 439,390.00
A97: Оборудование для электромонтажной мастерской (стусло, удленитель на катушке) | B97: 244 | C97: 310 | D97: шт. | E97: 3 | G97: 12,958.00
A98: Оборудование для дем. экзамена ( IP-камера, коммутатор, респираторы, фильтрующая полумаска, изолента, короб, перчатки) | B98: 244 | C98: 346 | D98: шт. | E98: 5 | G98: 34,807.00
A99: Оборудование для электромонтажной мастерской (кабедь, корпусы, метизы, кабель канал, провод, розетки,выключатель, труба гладкая и т.д.) | B99: 244 | C99: 346 | D99: шт. | E99: 528 | G99: 89,515.68
A100: Оборудование для сварочной мастерской (лист х/к, круг отрезной, агрон газообразный, двуокись углерода жидкая и т.д.) | B100: 244 | C100: 346 | D100: шт. | E100: 55 | G100: 73,810.00
A101: Оборудование для столярной мастерской (метизы, струбица, держатели) | B101: 244 | C101: 346 | D101: шт. | E101: 27 | G101: 4,281.00
A102: ВСЕГО субсидия на ГЗ | G102: =G5+G20+G26+G29+G36+G47+G52+G82+G83+G84+G85 -> 70,359,900.00
A104: * фактические расходы указать в разрезе направлений
A106: Руководитель | C106: Д.В. Шевченко
A107: Гл.бухгалтер | C107: О.А. Манаенкова
A108: Исполнитель Манаенкова О.А., 8 815 32 74763
